fUST/lending_fUST_20250716
["ID","MTS","AMOUNT","RATE_DAILY","PERIOD"]
[372441620,1752646250854,-1000.0,0.00021473,2]
[372441622,1752646250864,-570.98341117,0.00021595,2]
[372441623,1752646250873,-460.0,0.00021643,2]
[372441624,1752646250882,-572.02,0.00021643,2]
[372441626,1752646250891,-460.0,0.00021643,2]
[372441627,1752646250901,-305.98,0.00021643,2]
[372441629,1752646250911,-396.42,0.00021643,2]
[372441632,1752646250920,-877.26,0.00021643,2]
[372441633,1752646250930,-2561.96,0.00021643,2]
[372441636,1752646250941,-460.0,0.00021643,2]
[372441638,1752646250951,-769.46,0.00021643,2]
[372441639,1752646250962,-460.0,0.00021643,2]
[372441642,1752646250972,-460.0,0.00021643,2]
[372441644,1752646250982,-1046.2,0.00021643,2]
[372441645,1752646250993,-460.0,0.00021643,2]
[372441648,1752646251002,-1485.41,0.00021643,2]
[372441649,1752646251012,-4594.58,0.00021643,2]
[372441651,1752646251022,-460.0,0.00021643,2]
[372441653,1752646251036,-1116.92,0.00021643,2]
[372441655,1752646251046,-541.53,0.00021643,2]
[372441657,1752646251055,-460.0,0.00021643,2]
[372441659,1752646251064,-1782.44,0.00021643,2]
[372441661,1752646251074,-438.28,0.00021643,2]
[372441663,1752646251084,-1401.86,0.00021643,2]
[372441665,1752646251094,-496.36,0.00021643,2]
[372441667,1752646251103,-4539.19,0.00021643,2]
[372441669,1752646251115,-460.0,0.00021643,2]
[372441671,1752646251125,-474.75,0.00021643,2]
[372441673,1752646251135,-1507.72,0.00021643,2]
[372441675,1752646251144,-1563.67,0.00021643,2]
[372441677,1752646251153,-1249.42,0.00021643,2]
[372441679,1752646251163,-460.0,0.00021643,2]
[372441681,1752646251172,-3273.35,0.00021643,2]
[372441683,1752646251182,-460.0,0.00021643,2]
[372441685,1752646251194,-460.0,0.00021643,2]
[372441687,1752646251204,-460.0,0.00021643,2]
[372441689,1752646251213,-4557.98195225,0.00021681,2]
[372441690,1752646251222,-500.0,0.00021686,2]
[372441693,1752646251232,-587.0,0.00021687,2]
[372441694,1752646251242,-194.0,0.00021687,2]
[372441697,1752646251251,-20338.45,0.000217,2]
[372441699,1752646251261,-151.0,0.000217,3]
[372441700,1752646251271,-1500.0,0.00021725,2]
[372441703,1752646251283,-560.0,0.00021789,2]
[372441704,1752646251299,-1061.0,0.000219,2]
[372441706,1752646251309,-460.0,0.00021917,2]
[372441708,1752646251319,-877.26,0.00021917,2]
[372441710,1752646251329,-2561.96,0.00021917,2]
[372441712,1752646251339,-460.0,0.00021917,2]
[372441714,1752646251349,-769.46,0.00021917,2]
[372441716,1752646251359,-460.0,0.00021917,2]
[372441718,1752646251371,-460.0,0.00021917,2]
[372441720,1752646251381,-1046.2,0.00021917,2]
[372441722,1752646251390,-460.0,0.00021917,2]
[372441724,1752646251400,-1485.41,0.00021917,2]
[372441726,1752646251410,-4594.58,0.00021917,2]
[372441728,1752646251419,-460.0,0.00021917,2]
[372441730,1752646251428,-1116.92,0.00021917,2]
[372441732,1752646251437,-460.0,0.00021917,2]
[372441734,1752646251447,-1782.44,0.00021917,2]
[372441736,1752646251456,-1401.86,0.00021917,2]
[372441738,1752646251465,-496.36,0.00021917,2]
[372441740,1752646251475,-4539.19,0.00021917,2]
[372441742,1752646251484,-460.0,0.00021917,2]
[372441744,1752646251493,-474.75,0.00021917,2]
[372441746,1752646251502,-1507.72,0.00021917,2]
[372441748,1752646251512,-1563.67,0.00021917,2]
[372441750,1752646251521,-1249.42,0.00021917,2]
[372441752,1752646251532,-503.41,0.00021917,2]
[372441754,1752646251541,-3273.35,0.00021917,2]
[372441756,1752646251550,-460.0,0.00021917,2]
[372441758,1752646251559,-460.0,0.00021917,2]
[372441760,1752646251568,-460.0,0.00021917,2]
[372441761,1752646251578,-150.07429765,0.00021918,2]
[372441763,1752646251588,-158.02861431,0.0002192,4]
[372441765,1752646251597,-158.02861431,0.0002192,4]
[372441767,1752646251607,-158.02,0.0002192,4]
[372441769,1752646251617,-158.02861431,0.0002192,4]
[372441771,1752646251627,-164.42966239,0.0002192,4]
[372441773,1752646251636,-164.42966239,0.0002192,4]
[372441775,1752646251645,-164.42966239,0.0002192,4]
[372441777,1752646251654,-164.42966239,0.0002192,4]
[372441779,1752646251664,-164.42,0.0002192,4]
[372441781,1752646251674,-159.86217177,0.0002192,4]
[372441783,1752646251683,-159.86217177,0.0002192,4]
[372441785,1752646251693,-2000.0,0.00021984,2]
[372441787,1752646251702,-159.86217177,0.00021991,4]
[372441789,1752646251712,-151.0,0.00022,9]
[372441791,1752646251722,-170.4186172,0.00022,2]
[372441793,1752646251731,-21158.76,0.00022,7]
[372441795,1752646251740,-498.34621255,0.00022021,2]
[372441797,1752646251749,-158.02861431,0.00022076,4]
[372441799,1752646251759,-151.0,0.000221,7]
[372441801,1752646251768,-159.86217177,0.00022189,4]
[372441803,1752646251777,-532.51,0.00022191,2]
[372441805,1752646251787,-877.26,0.00022191,2]
[372441807,1752646251796,-2561.96,0.00022191,2]
[372441809,1752646251806,-460.0,0.00022191,2]
[372441810,1752646251816,-769.46,0.00022191,2]
[372441812,1752646251825,-460.0,0.00022191,2]
[372441814,1752646251835,-460.0,0.00022191,2]
[372441816,1752646251844,-1046.2,0.00022191,2]
[372441818,1752646251853,-460.0,0.00022191,2]
[372441820,1752646251863,-1485.41,0.00022191,2]
[372441822,1752646251872,-4594.58,0.00022191,2]
[372441824,1752646251882,-460.0,0.00022191,2]
[372441826,1752646251891,-1116.92,0.00022191,2]
[372441828,1752646251901,-460.0,0.00022191,2]
[372441830,1752646251910,-1782.44,0.00022191,2]
[372441832,1752646251919,-1401.86,0.00022191,2]
[372441833,1752646251928,-496.36,0.00022191,2]
[372441835,1752646251938,-4539.19,0.00022191,2]
[372441837,1752646251947,-460.0,0.00022191,2]
[372441838,1752646251958,-474.75,0.00022191,2]
[372441840,1752646251967,-1507.72,0.00022191,2]
[372441842,1752646251977,-1563.67,0.00022191,2]
[372441849,1752646252047,-1249.42,0.00022191,2]
[372441850,1752646252056,-3273.35,0.00022191,2]
[372441852,1752646252066,-460.0,0.00022191,2]
[372441854,1752646252077,-460.0,0.00022191,2]
[372441856,1752646252086,-460.0,0.00022191,2]
[372441858,1752646252096,-1503.9999861,0.00022273,2]
[372441860,1752646252107,-660.0,0.00022337,2]
[372441862,1752646252117,-159.86217177,0.00022387,4]
[372441864,1752646252126,-1445.75,0.000224,7]
[372441866,1752646252136,-158.02861431,0.00022415,4]
[372441868,1752646252145,-877.26,0.00022465,2]
[372441870,1752646252154,-2561.96,0.00022465,2]
[372441872,1752646252164,-172.20234821,0.00022465,2]
[372441874,1752646252173,-769.46,0.00022465,2]
[372441875,1752646252182,-460.0,0.00022465,2]
[372441877,1752646252191,-460.0,0.00022465,2]
[372441879,1752646252201,-1046.2,0.00022465,2]
[372441881,1752646252211,-460.0,0.00022465,2]
[372441883,1752646252220,-1485.41,0.00022465,2]
[372441885,1752646252229,-4594.58,0.00022465,2]
[372441887,1752646252239,-460.0,0.00022465,2]
[372441889,1752646252248,-1116.92,0.00022465,2]
[372441891,1752646252257,-460.0,0.00022465,2]
[372441893,1752646252266,-1782.44,0.00022465,2]
[372441894,1752646252275,-1401.86,0.00022465,2]
[372441896,1752646252284,-496.36,0.00022465,2]
[372441898,1752646252293,-4539.19,0.00022465,2]
[372441900,1752646252303,-460.0,0.00022465,2]
[372441902,1752646252312,-474.75,0.00022465,2]
[372441904,1752646252322,-1507.72,0.00022465,2]
[372441906,1752646252331,-1249.42,0.00022465,2]
[372441908,1752646252340,-1563.67,0.00022465,2]
[372441910,1752646252350,-3273.35,0.00022465,2]
[372441912,1752646252359,-460.0,0.00022465,2]
[372441914,1752646252369,-460.0,0.00022465,2]
[372441915,1752646252378,-460.0,0.00022465,2]
[372441917,1752646252388,-151.0,0.000225,9]
[372441919,1752646252398,-1293.70857859,0.00022532,2]
[372441921,1752646252407,-159.86217177,0.00022585,4]
[372441923,1752646252416,-151.0,0.000226,6]
[372441925,1752646252426,-877.26,0.00022739,2]
[372441927,1752646252436,-2561.96,0.00022739,2]
[372441929,1752646252446,-769.46,0.00022739,2]
[372441931,1752646252457,-460.0,0.00022739,2]
[372441933,1752646252467,-460.0,0.00022739,2]
[372441935,1752646252478,-1046.2,0.00022739,2]
[372441937,1752646252487,-209.36602447,0.00022739,2]
[372441939,1752646252497,-1485.41,0.00022739,2]
[372441941,1752646252506,-4594.58,0.00022739,2]
[372441943,1752646252516,-460.0,0.00022739,2]
[372441945,1752646252525,-1116.92,0.00022739,2]
[372441946,1752646252534,-460.0,0.00022739,2]
[372441948,1752646252544,-1782.44,0.00022739,2]
[372441950,1752646252553,-1401.86,0.00022739,2]
[372441952,1752646252563,-496.36,0.00022739,2]
[372441954,1752646252572,-4539.19,0.00022739,2]
[372441956,1752646252581,-358.1346827,0.00022739,2]
[372441958,1752646252592,-474.75,0.00022739,2]
[372441960,1752646252601,-1507.72,0.00022739,2]
[372441962,1752646252610,-1249.42,0.00022739,2]
[372441964,1752646252621,-1563.67,0.00022739,2]
[372441966,1752646252630,-3273.35,0.00022739,2]
[372441967,1752646252640,-225.93,0.00022739,2]
[372441969,1752646252650,-460.0,0.00022739,2]
[372441971,1752646252660,-158.02861431,0.00022755,4]
[372441973,1752646252669,-944.0,0.00022771,2]
[372441975,1752646252679,-159.86217177,0.00022783,4]
[372441977,1752646252689,-150.64634875,0.0002284,2]
[372441979,1752646252698,-760.0,0.00022885,2]
[372441981,1752646252708,-3000.0,0.000229,2]
[372441983,1752646252717,-1153.87,0.000229,7]
[372441985,1752646252727,-151.0,0.000229,7]
[372441987,1752646252736,-3000.0,0.0002291,2]
[372441989,1752646252745,-3000.0,0.0002292,2]
[372441991,1752646252755,-3000.0,0.0002293,2]
[372441993,1752646252764,-3292.749114,0.0002294,2]
[372441995,1752646252773,-886.0,0.00022968,2]
[372441997,1752646252782,-159.86217177,0.00022982,4]
[372441998,1752646252793,-4557.98195225,0.00022982,2]
[372442000,1752646252804,-331.2002356,0.00023,2]
[372442002,1752646252814,-877.26,0.00023013,2]
[372442004,1752646252823,-2561.96,0.00023013,2]
[372442006,1752646252833,-769.46,0.00023013,2]
[372442008,1752646252842,-460.0,0.00023013,2]
[372442010,1752646252853,-460.0,0.00023013,2]
[372442012,1752646252862,-1046.2,0.00023013,2]
[372442014,1752646252872,-1485.41,0.00023013,2]
[372442016,1752646252882,-4594.58,0.00023013,2]
[372442018,1752646252891,-460.0,0.00023013,2]
[372442020,1752646252901,-1116.92,0.00023013,2]
[372442022,1752646252910,-460.0,0.00023013,2]
[372442023,1752646252920,-1782.44,0.00023013,2]
[372442025,1752646252931,-1401.86,0.00023013,2]
[372442027,1752646252941,-496.36,0.00023013,2]
[372442029,1752646252950,-4539.19,0.00023013,2]
[372442031,1752646252959,-474.75,0.00023013,2]
[372442033,1752646252968,-1507.72,0.00023013,2]
[372442035,1752646252977,-1249.42,0.00023013,2]
[372442037,1752646252987,-1563.67,0.00023013,2]
[372442038,1752646252996,-3273.35,0.00023013,2]
[372442040,1752646253007,-460.0,0.00023013,2]
[372442042,1752646253016,-158.02861431,0.00023095,4]
[372442044,1752646253026,-886.0,0.00023163,2]
[372442046,1752646253038,-159.86217177,0.0002318,4]
[372442048,1752646253048,-151.0,0.000232,8]
[372442050,1752646253057,-877.26,0.00023287,2]
[372442052,1752646253066,-2561.96,0.00023287,2]
[372442054,1752646253076,-769.46,0.00023287,2]
[372442056,1752646253085,-460.0,0.00023287,2]
[372442058,1752646253094,-326.88,0.00023287,2]
[372442060,1752646253104,-1046.2,0.00023287,2]
[372442062,1752646253114,-1485.41,0.00023287,2]
[372442064,1752646253123,-4594.58,0.00023287,2]
[372442066,1752646253134,-460.0,0.00023287,2]
[372442068,1752646253145,-1116.92,0.00023287,2]
[372442070,1752646253154,-460.0,0.00023287,2]
[372442077,1752646253223,-1782.44,0.00023287,2]
[372442079,1752646253234,-1401.86,0.00023287,2]
[372442081,1752646253243,-151.0,0.00023287,7]
[372442083,1752646253253,-496.36,0.00023287,2]
[372442085,1752646253262,-4539.19,0.00023287,2]
[372442087,1752646253271,-474.75,0.00023287,2]
[372442089,1752646253281,-1507.72,0.00023287,2]
[372442091,1752646253290,-151.0,0.00023287,7]
[372442093,1752646253300,-1249.42,0.00023287,2]
[372442095,1752646253309,-1563.67,0.00023287,2]
[372442096,1752646253319,-3273.35,0.00023287,2]
[372442098,1752646253329,-460.0,0.00023287,2]
[372442100,1752646253339,-20338.45,0.000233,2]
[372442102,1752646253349,-21158.76,0.000233,7]
[372442104,1752646253359,-159.86217177,0.00023378,4]
[372442106,1752646253369,-860.0,0.00023433,2]
[372442108,1752646253379,-158.02861431,0.00023434,4]
[372442110,1752646253388,-886.0,0.00023451,2]
[372442112,1752646253398,-2055.41,0.00023488,2]
[372442113,1752646253407,-1005.0,0.00023498,2]
[372442114,1752646253416,-886.0,0.00023522,2]
[372442115,1752646253426,-877.26,0.00023561,2]
[372442116,1752646253435,-2561.96,0.00023561,2]
[372442117,1752646253444,-769.46,0.00023561,2]
[372442118,1752646253454,-460.0,0.00023561,2]
[372442119,1752646253463,-1046.2,0.00023561,2]
[372442120,1752646253472,-1485.41,0.00023561,2]
[372442121,1752646253483,-4594.58,0.00023561,2]
[372442122,1752646253492,-460.0,0.00023561,2]
[372442123,1752646253502,-1116.92,0.00023561,2]
[372442124,1752646253511,-460.0,0.00023561,2]
[372442125,1752646253521,-1782.44,0.00023561,2]
[372442126,1752646253531,-1401.86,0.00023561,2]
[372442127,1752646253540,-496.36,0.00023561,2]
[372442128,1752646253549,-4539.19,0.00023561,2]
[372442129,1752646253559,-200.0,0.00023561,2]
[372442130,1752646253568,-200.0,0.00023561,2]
[372442131,1752646253577,-200.0,0.00023561,2]
[372442132,1752646253586,-200.0,0.00023561,2]
[372442133,1752646253595,-200.0,0.00023561,2]
[372442134,1752646253605,-200.0,0.00023561,2]
[372442135,1752646253614,-200.0,0.00023561,2]
[372442136,1752646253623,-282.7493984,0.00023561,2]
[372442137,1752646253633,-474.75,0.00023561,2]
[372442138,1752646253643,-1507.72,0.00023561,2]
[372442139,1752646253653,-1249.42,0.00023561,2]
[372442141,1752646253663,-1563.67,0.00023561,2]
[372442143,1752646253672,-3273.35,0.00023561,2]
[372442144,1752646253682,-460.0,0.00023561,2]
[372442147,1752646253692,-151.0,0.00023568,7]
[372442148,1752646253704,-151.0,0.00023568,7]
[372442150,1752646253713,-151.0,0.00023568,7]
[372442152,1752646253724,-151.0,0.00023568,7]
[372442154,1752646253735,-151.0,0.00023568,7]
[372442156,1752646253745,-151.0,0.00023568,7]
[372442159,1752646253755,-151.0,0.00023568,7]
[372442161,1752646253765,-273.698498,0.00023568,7]
[372442162,1752646253775,-151.0,0.00023568,7]
[372442164,1752646253784,-151.542808,0.00023568,7]
[372442166,1752646253794,-151.3363,0.00023568,7]
[372442168,1752646253805,-151.0,0.00023568,7]
[372442170,1752646253814,-151.997121,0.00023568,7]
[372442172,1752646253823,-151.99573,0.00023568,7]
[372442174,1752646253833,-151.0,0.00023568,7]
[372442176,1752646253843,-151.0,0.00023568,7]
[372442178,1752646253853,-151.0,0.00023568,7]
[372442180,1752646253863,-151.0,0.00023568,2]
[372442182,1752646253873,-151.0,0.00023568,2]
[372442184,1752646253882,-151.0,0.00023568,2]
[372442186,1752646253893,-166.46846412,0.00023568,2]
[372442189,1752646253903,-207.4,0.00023568,2]
[372442191,1752646253913,-151.0,0.00023568,2]
[372442193,1752646253924,-151.0,0.00023568,2]
[372442194,1752646253936,-151.0,0.00023568,2]
[372442196,1752646253945,-151.0,0.00023568,2]
[372442198,1752646253955,-151.0,0.00023568,2]
[372442200,1752646253964,-151.0,0.00023568,2]
[372442202,1752646253973,-151.0,0.00023568,2]
[372442204,1752646253982,-151.0,0.00023568,2]
[372442206,1752646253991,-151.0,0.00023568,2]
[372442208,1752646254001,-151.0,0.00023568,2]
[372442210,1752646254010,-151.0,0.00023568,2]
[372442212,1752646254020,-151.0,0.00023568,2]
[372442214,1752646254032,-151.0,0.00023568,2]
[372442216,1752646254041,-151.0,0.00023568,2]
[372442218,1752646254051,-151.0,0.00023568,2]
[372442220,1752646254060,-151.0,0.00023568,2]
[372442222,1752646254071,-151.0,0.00023568,2]
[372442224,1752646254080,-151.0,0.00023568,2]
[372442226,1752646254089,-151.0,0.00023568,2]
[372442228,1752646254098,-151.0,0.00023568,2]
[372442230,1752646254109,-151.0,0.00023568,2]
[372442232,1752646254120,-151.0,0.00023568,2]
[372442234,1752646254129,-151.0,0.00023568,2]
[372442236,1752646254139,-151.0,0.00023568,2]
[372442238,1752646254148,-151.0,0.00023568,2]
[372442240,1752646254157,-153.7637497,0.00023568,2]
[372442242,1752646254167,-151.0,0.00023568,2]
[372442244,1752646254176,-151.0,0.00023568,2]
[372442246,1752646254186,-151.0,0.00023568,2]
[372442248,1752646254195,-151.0,0.00023568,2]
[372442250,1752646254205,-175.8563729,0.00023568,2]
[372442252,1752646254214,-151.0,0.00023568,2]
[372442254,1752646254224,-151.0,0.00023568,2]
[372442256,1752646254233,-6912.642,0.00023568,2]
[372442258,1752646254243,-151.0,0.00023568,2]
[372442260,1752646254252,-152.54360767,0.00023568,2]
[372442270,1752646254342,-151.0,0.00023568,2]
[372442272,1752646254351,-500.0,0.00023568,2]
[372442274,1752646254361,-151.0,0.00023568,2]
[372442276,1752646254371,-500.0,0.00023568,2]
[372442278,1752646254380,-151.0,0.00023568,2]
[372442280,1752646254390,-500.0,0.00023568,2]
[372442282,1752646254399,-500.0,0.00023568,2]
[372442284,1752646254409,-151.0,0.00023568,2]
[372442286,1752646254420,-500.0,0.00023568,2]
[372442288,1752646254430,-151.0,0.00023568,2]
[372442290,1752646254439,-500.0,0.00023568,2]
[372442292,1752646254450,-151.0,0.00023568,2]
[372442294,1752646254460,-500.0,0.00023568,2]
[372442296,1752646254470,-151.0,0.00023568,2]
[372442298,1752646254479,-500.0,0.00023568,2]
[372442300,1752646254489,-151.0,0.00023568,2]
[372442302,1752646254498,-500.0,0.00023568,2]
[372442304,1752646254508,-500.0,0.00023568,2]
[372442306,1752646254517,-25000.0,0.00023568,2]
[372442308,1752646254527,-151.0,0.00023568,2]
[372442310,1752646254538,-500.0,0.00023568,2]
[372442312,1752646254547,-151.0,0.00023568,2]
[372442314,1752646254557,-500.0,0.00023568,2]
[372442316,1752646254567,-151.0,0.00023568,2]
[372442318,1752646254576,-500.0,0.00023568,2]
[372442320,1752646254586,-500.0,0.00023568,2]
[372442322,1752646254595,-500.0,0.00023568,2]
[372442324,1752646254604,-500.0,0.00023568,2]
[372442326,1752646254614,-22962.98598498,0.00023568,2]
[372442328,1752646254623,-500.0,0.00023568,2]
[372442330,1752646254632,-886.0,0.00023571,2]
[372442332,1752646254641,-159.86217177,0.00023576,4]
[372442334,1752646254651,-714.90504998,0.00023615,5]
[372442336,1752646254660,-151.0,0.00023623,7]
[372442338,1752646254669,-151.0,0.00023623,7]
[372442340,1752646254679,-151.0,0.00023623,7]
[372442342,1752646254689,-1130.527688,0.00023623,7]
[372442344,1752646254698,-1130.527688,0.00023623,7]
[372442346,1752646254707,-7168.409754,0.00023623,2]
[372442348,1752646254717,-823.0,0.00023658,2]
[372442350,1752646254726,-7433.6409149,0.00023678,2]
[372442352,1752646254736,-429.1687796,0.00023699,2]
[372442354,1752646254745,-151.0,0.000237,7]
[372442356,1752646254755,-7708.68562875,0.00023733,2]
[372442358,1752646254764,-158.02,0.00023774,4]
[372442360,1752646254774,-159.86,0.00023774,4]
[372442362,1752646254783,-151.0,0.00023788,7]
[372442364,1752646254792,-151.0,0.00023788,7]
[372442366,1752646254802,-7993.90699701,0.00023788,2]
[372442368,1752646254811,-877.26,0.00023835,2]
[372442372,1752646254836,-2561.96,0.00023835,2]
[372442374,1752646254854,-769.46,0.00023835,2]
[372442377,1752646254872,-460.0,0.00023835,2]
[372442380,1752646254893,-1046.2,0.00023835,2]
[372442383,1752646254913,-1485.41,0.00023835,2]
[372442386,1752646254930,-4594.58,0.00023835,2]
[372442389,1752646254950,-460.0,0.00023835,2]
[372442392,1752646254964,-1116.92,0.00023835,2]
[372442394,1752646254980,-460.0,0.00023835,2]
[372442397,1752646254998,-1782.44,0.00023835,2]
[372442400,1752646255018,-1401.86,0.00023835,2]
[372442403,1752646255037,-496.36,0.00023835,2]
[372442405,1752646255052,-4539.19,0.00023835,2]
[372442408,1752646255071,-474.75,0.00023835,2]
[372442411,1752646255086,-1507.72,0.00023835,2]
[372442413,1752646255101,-1249.42,0.00023835,2]
[372442416,1752646255116,-1563.67,0.00023835,2]
[372442418,1752646255131,-3273.35,0.00023835,2]
[372442421,1752646255146,-460.0,0.00023835,2]
[372442423,1752646255162,-8289.6815559,0.00023843,2]
[372442426,1752646255177,-5486.86997907,0.00023874,7]
[372442428,1752646255192,-500.0,0.00023878,2]
[372442431,1752646255209,-743.69321102,0.00023898,2]
[372442433,1752646255224,-245.82929744,0.000239,2]
[372442436,1752646255239,-151.0,0.00023903,6]
[372442439,1752646255254,-153.0,0.00023973,2]
[372442441,1752646255268,-960.0,0.00023981,2]
[372442444,1752646255284,-1000.0,0.00024,2]
[372442446,1752646255299,-1000.0,0.00024,2]
[372442449,1752646255313,-1000.0,0.00024,2]
[372442451,1752646255330,-1000.0,0.00024,2]
[372442454,1752646255344,-1000.0,0.00024,2]
[372442456,1752646255359,-1000.0,0.00024,2]
[372442459,1752646255374,-1000.0,0.00024,2]
[372442461,1752646255389,-1000.0,0.00024,2]
[372442464,1752646255404,-1000.0,0.00024,2]
[372442466,1752646255419,-1000.0,0.00024,2]
[372442469,1752646255434,-1000.0,0.00024,2]
[372442472,1752646255449,-1000.0,0.00024,2]
[372442474,1752646255464,-1000.0,0.00024,2]
[372442477,1752646255479,-1000.0,0.00024,2]
[372442479,1752646255494,-1000.0,0.00024,2]
[372442482,1752646255509,-1000.0,0.00024,2]
[372442484,1752646255523,-1000.0,0.00024,2]
[372442486,1752646255533,-1000.0,0.00024,2]
[372442488,1752646255542,-1000.0,0.00024,2]
[372442490,1752646255552,-1000.0,0.00024,2]
[372442492,1752646255561,-1000.0,0.00024,2]
[372442506,1752646255681,-1000.0,0.00024,2]
[372442508,1752646255691,-1000.0,0.00024,2]
[372442510,1752646255700,-1000.0,0.00024,2]
[372442512,1752646255710,-1000.0,0.00024,2]
[372442514,1752646255720,-1125.41,0.00024,2]
[372442516,1752646255729,-151.0,0.00024,7]
[372442518,1752646255739,-151.0,0.00024,7]
[372442520,1752646255749,-1445.75,0.00024,7]
[372442522,1752646255759,-230.8109288,0.00024,7]
[372442524,1752646255768,-1005.0,0.00024095,2]
[372442526,1752646255778,-877.26,0.00024109,2]
[372442528,1752646255788,-2561.96,0.00024109,2]
[372442530,1752646255798,-769.46,0.00024109,2]
[372442532,1752646255809,-460.0,0.00024109,2]
[372442534,1752646255819,-1046.2,0.00024109,2]
[372442536,1752646255828,-1485.41,0.00024109,2]
[372442538,1752646255837,-4594.58,0.00024109,2]
[372442540,1752646255848,-460.0,0.00024109,2]
[372442542,1752646255857,-1116.92,0.00024109,2]
[372442544,1752646255868,-460.0,0.00024109,2]
[372442546,1752646255877,-1782.44,0.00024109,2]
[372442548,1752646255887,-1401.86,0.00024109,2]
[372442550,1752646255896,-496.36,0.00024109,2]
[372442552,1752646255906,-4539.19,0.00024109,2]
[372442554,1752646255915,-474.75,0.00024109,2]
[372442556,1752646255924,-1507.72,0.00024109,2]
[372442558,1752646255934,-1249.42,0.00024109,2]
[372442560,1752646255943,-1563.67,0.00024109,2]
[372442562,1752646255954,-3273.35,0.00024109,2]
[372442564,1752646255964,-460.0,0.00024109,2]
[372442566,1752646255974,-25000.0,0.00024116,2]
[372442568,1752646255983,-151.0,0.00024171,6]
[372442570,1752646255992,-968.0,0.00024196,2]
[372442572,1752646256002,-1005.0,0.0002421,2]
[372442574,1752646256012,-4557.98195225,0.00024283,2]
[372442576,1752646256022,-407.0,0.00024297,2]
[372442578,1752646256036,-151.0,0.000243,7]
[372442580,1752646256045,-162.95973128,0.00024329,2]
[372442582,1752646256054,-877.26,0.00024383,2]
[372442584,1752646256064,-2561.96,0.00024383,2]
[372442586,1752646256075,-769.46,0.00024383,2]
[372442588,1752646256084,-460.0,0.00024383,2]
[372442590,1752646256093,-1046.2,0.00024383,2]
[372442592,1752646256102,-1485.41,0.00024383,2]
[372442594,1752646256111,-4594.58,0.00024383,2]
[372442596,1752646256122,-460.0,0.00024383,2]
[372442598,1752646256131,-1116.92,0.00024383,2]
[372442600,1752646256140,-460.0,0.00024383,2]
[372442602,1752646256150,-1782.44,0.00024383,2]
[372442604,1752646256159,-1401.86,0.00024383,2]
[372442606,1752646256170,-152.097822,0.00024383,7]
[372442608,1752646256179,-496.36,0.00024383,2]
[372442610,1752646256188,-4539.19,0.00024383,2]
[372442612,1752646256197,-474.75,0.00024383,2]
[372442614,1752646256207,-199.423126,0.00024383,7]
[372442616,1752646256216,-1507.72,0.00024383,2]
[372442618,1752646256225,-1249.42,0.00024383,2]
[372442620,1752646256235,-1563.67,0.00024383,2]
[372442622,1752646256245,-3273.35,0.00024383,2]
[372442624,1752646256254,-460.0,0.00024383,2]
[372442626,1752646256264,-512.851558,0.00024392,8]
[372442627,1752646256273,-151.0,0.00024392,7]
[372442629,1752646256283,-151.0,0.00024392,7]